[Event "*** SCC Grand Prix: Titled Tuesday Blitz"]
[Site "Chess.com"]
[Date "2020.08.04"]
[Round "10"]
[White "The_Machine04"]
[Black "aljado"]
[Result "0-1"]
[WhiteElo "2223"]
[BlackElo "2139"]
[TimeControl "180+1"]
[EndTime "15:38:01 PDT"]
[Termination "aljado won on time"]

1. d4 {[%clk 0:03:00.9]} 1... Nf6 {[%clk 0:02:58.5]} 2. Bg5 {[%clk 0:02:59]}
2... e6 {[%clk 0:02:55.4]} 3. Nd2 {[%clk 0:02:53.2]} 3... c5 {[%clk 0:02:54.1]}
4. e3 {[%clk 0:02:52.4]} 4... d5 {[%clk 0:02:53.5]} 5. c3 {[%clk 0:02:46.1]}
5... Be7 {[%clk 0:02:50.7]} 6. Bd3 {[%clk 0:02:44.8]} 6... b6 {[%clk 0:02:48.9]}
7. f4 {[%clk 0:02:42.1]} 7... Bb7 {[%clk 0:02:48.8]} 8. Ngf3 {[%clk 0:02:41.5]}
8... Nc6 {[%clk 0:02:48.8]} 9. O-O {[%clk 0:02:38.9]} 9... h6 {[%clk 0:02:44.5]}
10. Bxf6 {[%clk 0:02:33.1]} 10... gxf6 {[%clk 0:02:44.2]} 11. Qe2 {[%clk
0:02:29.1]} 11... f5 {[%clk 0:02:42.6]} 12. Ne5 {[%clk 0:02:25.8]} 12... Bd6
{[%clk 0:02:40.4]} 13. Qh5 {[%clk 0:02:14.8]} 13... Bxe5 {[%clk 0:02:38.4]} 14.
fxe5 {[%clk 0:02:15.7]} 14... c4 {[%clk 0:02:34.9]} 15. Bc2 {[%clk 0:02:05]}
15... Qe7 {[%clk 0:02:33.5]} 16. Nf3 {[%clk 0:01:50.8]} 16... O-O-O {[%clk
0:02:32.4]} 17. Qh4 {[%clk 0:01:44.4]} 17... Qd7 {[%clk 0:02:26.8]} 18. a4
{[%clk 0:01:36.9]} 18... Rdg8 {[%clk 0:02:26.6]} 19. Rf2 {[%clk 0:01:16.2]}
19... Rg4 {[%clk 0:02:25.8]} 20. Qh3 {[%clk 0:01:13.2]} 20... h5 {[%clk
0:02:24.3]} 21. Nh4 {[%clk 0:01:03.9]} 21... Qe7 {[%clk 0:02:18.9]} 22. g3
{[%clk 0:01:02.5]} 22... Qg5 {[%clk 0:02:16.9]} 23. Re1 {[%clk 0:00:57.4]} 23...
Ne7 {[%clk 0:02:14.3]} 24. Kf1 {[%clk 0:00:53]} 24... Ng6 {[%clk 0:01:59.5]} 25.
Nxg6 {[%clk 0:00:46.8]} 25... Qxg6 {[%clk 0:01:57]} 26. Ke2 {[%clk 0:00:46.5]}
26... h4 {[%clk 0:01:54.9]} 27. Kd2 {[%clk 0:00:43.6]} 27... Rh5 {[%clk
0:01:39.4]} 28. Bd1 {[%clk 0:00:35.9]} 28... hxg3 {[%clk 0:01:35.8]} 29. Qxh5
{[%clk 0:00:15.2]} 29... Qxh5 {[%clk 0:01:32.7]} 30. Bxg4 {[%clk 0:00:14.6]}
30... Qxg4 {[%clk 0:01:28.8]} 31. Rg2 {[%clk 0:00:14.5]} 31... f4 {[%clk
0:01:21.8]} 32. hxg3 {[%clk 0:00:13]} 32... f3 {[%clk 0:01:13.8]} 33. Rf2 {[%clk
0:00:12.6]} 33... Qxg3 {[%clk 0:01:13.9]} 34. Ref1 {[%clk 0:00:12.9]} 34... Bc6
{[%clk 0:01:08.4]} 35. Rxf3 {[%clk 0:00:12.9]} 35... Qg6 {[%clk 0:01:08.6]} 36.
Rf6 {[%clk 0:00:12.3]} 36... Qe4 {[%clk 0:01:07.1]} 37. Rxf7 {[%clk 0:00:10.1]}
37... Qd3+ {[%clk 0:01:06]} 38. Kc1 {[%clk 0:00:09.1]} 38... Bxa4 {[%clk
0:01:03.2]} 39. Rf8+ {[%clk 0:00:04.2]} 39... Kb7 {[%clk 0:01:02.2]} 40. R8f7+
{[%clk 0:00:04.1]} 40... Ka6 {[%clk 0:01:01.8]} 41. R7f2 {[%clk 0:00:04.3]}
41... Qxe3+ {[%clk 0:00:59.9]} 42. Kb1 {[%clk 0:00:04.3]} 42... Bb3 {[%clk
0:00:57.6]} 43. Ka1 {[%clk 0:00:02.8]} 43... Qh3 {[%clk 0:00:55.5]} 44. Kb1
{[%clk 0:00:03.1]} 44... Qh8 {[%clk 0:00:54.3]} 45. Ka1 {[%clk 0:00:03.4]} 45...
Qe8 {[%clk 0:00:53.8]} 46. Kb1 {[%clk 0:00:03.7]} 46... Qa4 {[%clk 0:00:53.4]}
47. Kc1 {[%clk 0:00:04]} 47... Qa1+ {[%clk 0:00:52.6]} 48. Kd2 {[%clk
0:00:04.9]} 48... Qxb2+ {[%clk 0:00:52.5]} 49. Ke3 {[%clk 0:00:05.8]} 49...
Qxc3+ {[%clk 0:00:52.1]} 50. Kf4 {[%clk 0:00:06.7]} 50... Qxd4+ {[%clk
0:00:51.5]} 51. Kg5 {[%clk 0:00:07.6]} 51... Qxe5+ {[%clk 0:00:51.2]} 0-1

[Event "*** SCC Grand Prix: Titled Tuesday Blitz"]
[Site "Chess.com"]
[Date "2020.08.04"]
[Round "10"]
[White "eightbyeightchess"]
[Black "SiddharthGMJagadeesh"]
[Result "1-0"]
[WhiteElo "2449"]
[BlackElo "2563"]
[TimeControl "180+1"]
[EndTime "15:38:02 PDT"]
[Termination "eightbyeightchess won by checkmate"]

1. e4 {[%clk 0:03:00.9]} 1... d6 {[%clk 0:02:57.3]} 2. d4 {[%clk 0:03:00.8]}
2... Nf6 {[%clk 0:02:57.7]} 3. Nc3 {[%clk 0:03:01]} 3... e5 {[%clk 0:02:58.2]}
4. f4 {[%clk 0:02:56.1]} 4... exd4 {[%clk 0:02:52.3]} 5. Qxd4 {[%clk 0:02:57]}
5... Be7 {[%clk 0:02:51]} 6. Bd3 {[%clk 0:02:52.8]} 6... Nc6 {[%clk 0:02:47]} 7.
Qf2 {[%clk 0:02:52.5]} 7... O-O {[%clk 0:02:40.5]} 8. Nf3 {[%clk 0:02:52.5]}
8... d5 {[%clk 0:02:33.3]} 9. e5 {[%clk 0:02:47.7]} 9... Ng4 {[%clk 0:02:32.9]}
10. Qg3 {[%clk 0:02:43.4]} 10... Bc5 {[%clk 0:02:29.1]} 11. Nd1 {[%clk
0:02:32.7]} 11... f6 {[%clk 0:01:55.9]} 12. h3 {[%clk 0:02:05.3]} 12... Nh6
{[%clk 0:01:55.2]} 13. Be3 {[%clk 0:02:04.8]} 13... Bxe3 {[%clk 0:01:35.6]} 14.
Nxe3 {[%clk 0:02:05.7]} 14... fxe5 {[%clk 0:01:34.1]} 15. fxe5 {[%clk
0:02:05.7]} 15... d4 {[%clk 0:01:32]} 16. Bc4+ {[%clk 0:01:52.1]} 16... Kh8
{[%clk 0:01:29.8]} 17. O-O-O {[%clk 0:01:47.1]} 17... Nf5 {[%clk 0:01:26.3]} 18.
Nxf5 {[%clk 0:01:43.8]} 18... Bxf5 {[%clk 0:01:27.2]} 19. a3 {[%clk 0:01:23.8]}
19... Qe7 {[%clk 0:01:22.6]} 20. Nxd4 {[%clk 0:00:57.2]} 20... Nxe5 {[%clk
0:01:02.3]} 21. Rhe1 {[%clk 0:00:47.4]} 21... Rae8 {[%clk 0:01:00.5]} 22. Nf3
{[%clk 0:00:37.9]} 22... Nxc4 {[%clk 0:00:52.6]} 23. Rxe7 {[%clk 0:00:37.3]}
23... Rxe7 {[%clk 0:00:53.5]} 24. Qh4 {[%clk 0:00:32.8]} 24... Re4 {[%clk
0:00:46.3]} 25. Rd8 {[%clk 0:00:26.2]} 25... Kg8 {[%clk 0:00:27.1]} 26. Rxf8+
{[%clk 0:00:26.1]} 26... Kxf8 {[%clk 0:00:28]} 27. Qd8+ {[%clk 0:00:26.5]} 27...
Re8 {[%clk 0:00:25.3]} 28. Qxc7 {[%clk 0:00:26.5]} 28... Ne3 {[%clk 0:00:25.5]}
29. Qc5+ {[%clk 0:00:18.1]} 29... Kg8 {[%clk 0:00:22.5]} 30. Nd4 {[%clk
0:00:17.7]} 30... Bg6 {[%clk 0:00:18.5]} 31. b3 {[%clk 0:00:17.7]} 31... Kh8
{[%clk 0:00:16]} 32. Qxa7 {[%clk 0:00:17.2]} 32... Nxc2 {[%clk 0:00:13.7]} 33.
Nxc2 {[%clk 0:00:16.4]} 33... Rc8 {[%clk 0:00:14.3]} 34. Qxb7 {[%clk 0:00:16.3]}
34... Rxc2+ {[%clk 0:00:13.9]} 35. Kd1 {[%clk 0:00:16.7]} 35... h6 {[%clk
0:00:13.6]} 36. a4 {[%clk 0:00:15.2]} 36... Kh7 {[%clk 0:00:13.3]} 37. a5 {[%clk
0:00:15]} 37... Rb2 {[%clk 0:00:12.8]} 38. a6 {[%clk 0:00:13.5]} 38... Bc2+
{[%clk 0:00:10.1]} 39. Kc1 {[%clk 0:00:13.9]} 39... Rxb3 {[%clk 0:00:10.3]} 40.
Kxc2 {[%clk 0:00:13.3]} 40... Ra3 {[%clk 0:00:08.9]} 41. a7 {[%clk 0:00:12.7]}
41... Ra2+ {[%clk 0:00:09.5]} 42. Kb1 {[%clk 0:00:12.6]} 42... Ra3 {[%clk
0:00:09.8]} 43. a8=Q {[%clk 0:00:12.3]} 43... Rg3 {[%clk 0:00:10.7]} 44. Qe4+
{[%clk 0:00:12]} 44... Rg6 {[%clk 0:00:10]} 45. Qae8 {[%clk 0:00:11.5]} 45... h5
{[%clk 0:00:10.2]} 46. Q4xg6# {[%clk 0:00:12.4]} 1-0

[Event "*** SCC Grand Prix: Titled Tuesday Blitz"]
[Site "Chess.com"]
[Date "2020.08.04"]
[Round "10"]
[White "djano"]
[Black "DishonorOnYourCow"]
[Result "1-0"]
[WhiteElo "2410"]
[BlackElo "2275"]
[TimeControl "180+1"]
[EndTime "15:38:03 PDT"]
[Termination "djano won on time"]

1. d4 {[%clk 0:03:00.9]} 1... Nf6 {[%clk 0:02:54.4]} 2. Nf3 {[%clk 0:02:53.8]}
2... g6 {[%clk 0:02:52.4]} 3. Nc3 {[%clk 0:02:52.2]} 3... d5 {[%clk 0:02:50.8]}
4. Bf4 {[%clk 0:02:50.2]} 4... Bg7 {[%clk 0:02:49.1]} 5. Qd2 {[%clk 0:02:49.7]}
5... c6 {[%clk 0:02:39.1]} 6. Ne5 {[%clk 0:02:44.3]} 6... b5 {[%clk 0:02:33.7]}
7. f3 {[%clk 0:02:41.6]} 7... a5 {[%clk 0:02:29.2]} 8. Bh6 {[%clk 0:02:37.8]}
8... Bxh6 {[%clk 0:02:16.4]} 9. Qxh6 {[%clk 0:02:38.7]} 9... Nbd7 {[%clk
0:01:55.5]} 10. e3 {[%clk 0:02:19.3]} 10... Qc7 {[%clk 0:01:48.2]} 11. Qf4
{[%clk 0:01:58]} 11... Nxe5 {[%clk 0:01:12.3]} 12. dxe5 {[%clk 0:01:48.9]} 12...
Nd7 {[%clk 0:01:11.2]} 13. e6 {[%clk 0:01:45.9]} 13... Ne5 {[%clk 0:01:03.8]}
14. exf7+ {[%clk 0:01:45.3]} 14... Kf8 {[%clk 0:01:00.1]} 15. h4 {[%clk
0:01:36.6]} 15... Qd6 {[%clk 0:00:58.1]} 16. h5 {[%clk 0:01:34.2]} 16... Nxf7
{[%clk 0:00:56.1]} 17. Qxd6 {[%clk 0:01:33.5]} 17... exd6 {[%clk 0:00:56.4]} 18.
a4 {[%clk 0:01:19.2]} 18... b4 {[%clk 0:00:53.7]} 19. Ne2 {[%clk 0:01:19.5]}
19... Bf5 {[%clk 0:00:52.6]} 20. Nd4 {[%clk 0:01:19.6]} 20... Bd7 {[%clk
0:00:52.8]} 21. Bd3 {[%clk 0:01:04.5]} 21... Kg7 {[%clk 0:00:37.8]} 22. Kd2
{[%clk 0:01:01.8]} 22... c5 {[%clk 0:00:33.7]} 23. Nb5 {[%clk 0:00:59.8]} 23...
c4 {[%clk 0:00:32.8]} 24. Be2 {[%clk 0:00:56.7]} 24... Bxb5 {[%clk 0:00:28.8]}
25. axb5 {[%clk 0:00:57.6]} 25... Rhb8 {[%clk 0:00:26.6]} 26. b3 {[%clk
0:00:57.9]} 26... Rxb5 {[%clk 0:00:21.2]} 27. hxg6 {[%clk 0:00:57.1]} 27... hxg6
{[%clk 0:00:20.4]} 28. bxc4 {[%clk 0:00:57.5]} 28... dxc4 {[%clk 0:00:20.6]} 29.
Bxc4 {[%clk 0:00:58.4]} 29... Rc5 {[%clk 0:00:19.6]} 30. Bxf7 {[%clk 0:00:55.4]}
30... Kxf7 {[%clk 0:00:20.5]} 31. Rh7+ {[%clk 0:00:55.4]} 31... Kf6 {[%clk
0:00:21]} 32. Rd7 {[%clk 0:00:53.8]} 32... d5 {[%clk 0:00:19.7]} 33. Rd6+ {[%clk
0:00:50.1]} 33... Kf7 {[%clk 0:00:16.7]} 34. Ra2 {[%clk 0:00:47.7]} 34... a4
{[%clk 0:00:16.2]} 35. Rb6 {[%clk 0:00:46.7]} 35... Rc4 {[%clk 0:00:15.8]} 36.
g4 {[%clk 0:00:41.4]} 36... a3 {[%clk 0:00:15.2]} 37. g5 {[%clk 0:00:39.9]}
37... Rd8 {[%clk 0:00:11.3]} 38. Ra1 {[%clk 0:00:31.7]} 38... d4 {[%clk
0:00:11.2]} 39. e4 {[%clk 0:00:32.2]} 39... Rdc8 {[%clk 0:00:09.4]} 40. Ra2
{[%clk 0:00:29.8]} 40... Rc3 {[%clk 0:00:06.9]} 41. Rxb4 {[%clk 0:00:27.2]}
41... Rxf3 {[%clk 0:00:06.9]} 42. Rxd4 {[%clk 0:00:27.4]} 42... Rc5 {[%clk
0:00:07.1]} 43. Rd5 {[%clk 0:00:26.1]} 43... Rc4 {[%clk 0:00:03.7]} 44. Rd3
{[%clk 0:00:21.5]} 1-0

[Event "*** SCC Grand Prix: Titled Tuesday Blitz"]
[Site "Chess.com"]
[Date "2020.08.04"]
[Round "10"]
[White "peixe64"]
[Black "ace_mar"]
[Result "1-0"]
[WhiteElo "2345"]
[BlackElo "2443"]
[TimeControl "180+1"]
[EndTime "15:38:09 PDT"]
[Termination "peixe64 won by checkmate"]

1. e4 {[%clk 0:03:00.9]} 1... e5 {[%clk 0:02:59.7]} 2. Nf3 {[%clk 0:03:00.4]}
2... Nc6 {[%clk 0:03:00.3]} 3. Bb5 {[%clk 0:02:59.2]} 3... a6 {[%clk 0:03:00.3]}
4. Ba4 {[%clk 0:02:59.3]} 4... Nf6 {[%clk 0:02:59.9]} 5. O-O {[%clk 0:02:59.1]}
5... Be7 {[%clk 0:03:00.5]} 6. Re1 {[%clk 0:02:57]} 6... b5 {[%clk 0:03:00.8]}
7. Bb3 {[%clk 0:02:57.6]} 7... d6 {[%clk 0:03:01.3]} 8. c3 {[%clk 0:02:56.2]}
8... O-O {[%clk 0:03:01.6]} 9. h3 {[%clk 0:02:56.5]} 9... Nb8 {[%clk 0:03:02.1]}
10. d4 {[%clk 0:02:55.7]} 10... Nbd7 {[%clk 0:03:02.5]} 11. Nbd2 {[%clk
0:02:53]} 11... Bb7 {[%clk 0:03:02.3]} 12. Bc2 {[%clk 0:02:51.5]} 12... Re8
{[%clk 0:03:02.6]} 13. Nf1 {[%clk 0:02:51.5]} 13... Bf8 {[%clk 0:03:03]} 14. Ng3
{[%clk 0:02:51.9]} 14... g6 {[%clk 0:03:03.6]} 15. a4 {[%clk 0:02:47.9]} 15...
c5 {[%clk 0:03:03.3]} 16. Bd3 {[%clk 0:02:45.8]} 16... exd4 {[%clk 0:02:53.3]}
17. cxd4 {[%clk 0:02:38.2]} 17... c4 {[%clk 0:02:53.4]} 18. Bc2 {[%clk
0:02:34.3]} 18... Bg7 {[%clk 0:02:51.3]} 19. Bf4 {[%clk 0:02:15.1]} 19... Nf8
{[%clk 0:02:39.7]} 20. d5 {[%clk 0:02:04.4]} 20... Qb6 {[%clk 0:02:28.4]} 21. a5
{[%clk 0:01:55.5]} 21... Qc7 {[%clk 0:02:22.6]} 22. Nd4 {[%clk 0:01:36.6]} 22...
N8d7 {[%clk 0:02:15.5]} 23. Qd2 {[%clk 0:01:21.3]} 23... Nc5 {[%clk 0:02:13.6]}
24. Bh6 {[%clk 0:01:16.5]} 24... Re7 {[%clk 0:01:47.6]} 25. Ngf5 {[%clk
0:01:01.9]} 25... gxf5 {[%clk 0:01:44.5]} 26. Nxf5 {[%clk 0:00:51.5]} 26... Ne8
{[%clk 0:01:25.1]} 27. Bxg7 {[%clk 0:00:38.7]} 27... Nxg7 {[%clk 0:01:22.4]} 28.
Qg5 {[%clk 0:00:20]} 28... f6 {[%clk 0:01:22]} 29. Nh6+ {[%clk 0:00:19.8]} 29...
Kh8 {[%clk 0:01:13.9]} 30. Qxf6 {[%clk 0:00:20.1]} 30... Rae8 {[%clk 0:00:59]}
31. e5 {[%clk 0:00:19.1]} 31... Nd7 {[%clk 0:00:25.7]} 32. Qh4 {[%clk 0:00:14]}
32... Nh5 {[%clk 0:00:07.1]} 33. Qxh5 {[%clk 0:00:11.9]} 33... Nxe5 {[%clk
0:00:07.3]} 34. f4 {[%clk 0:00:08.9]} 34... Ng6 {[%clk 0:00:06.8]} 35. Rxe7
{[%clk 0:00:06.8]} 35... Rxe7 {[%clk 0:00:07.7]} 36. Bxg6 {[%clk 0:00:07]} 36...
hxg6 {[%clk 0:00:08.6]} 37. Qxg6 {[%clk 0:00:07.1]} 37... Rg7 {[%clk 0:00:07.6]}
38. Qe8+ {[%clk 0:00:05.1]} 38... Kh7 {[%clk 0:00:07.3]} 39. Nf5 {[%clk
0:00:05]} 39... Rg8 {[%clk 0:00:04.7]} 40. Qh5# {[%clk 0:00:05]} 1-0

[Event "*** SCC Grand Prix: Titled Tuesday Blitz"]
[Site "Chess.com"]
[Date "2020.08.04"]
[Round "10"]
[White "FMJoseHerrera"]
[Black "Filip_Covic"]
[Result "1-0"]
[WhiteElo "2494"]
[BlackElo "2364"]
[TimeControl "180+1"]
[EndTime "15:38:14 PDT"]
[Termination "FMJoseHerrera won by resignation"]

1. f3 {[%clk 0:03:00]} 1... e5 {[%clk 0:02:58.8]} 2. g3 {[%clk 0:02:59.3]} 2...
d5 {[%clk 0:02:58.2]} 3. Kf2 {[%clk 0:02:59.7]} 3... Nf6 {[%clk 0:02:57.9]} 4.
Kg2 {[%clk 0:03:00]} 4... Bd6 {[%clk 0:02:57]} 5. c4 {[%clk 0:02:59.8]} 5... c6
{[%clk 0:02:56.7]} 6. cxd5 {[%clk 0:02:59.9]} 6... cxd5 {[%clk 0:02:57.6]} 7.
Nh3 {[%clk 0:02:58.9]} 7... h5 {[%clk 0:02:57.1]} 8. Nf2 {[%clk 0:02:57.6]} 8...
h4 {[%clk 0:02:56.5]} 9. g4 {[%clk 0:02:58.1]} 9... e4 {[%clk 0:02:50]} 10. Nc3
{[%clk 0:02:49.9]} 10... Nc6 {[%clk 0:02:42.4]} 11. d3 {[%clk 0:02:45.6]} 11...
exf3+ {[%clk 0:02:34.9]} 12. exf3 {[%clk 0:02:45.4]} 12... d4 {[%clk 0:02:34.9]}
13. Nce4 {[%clk 0:02:45.2]} 13... Nd5 {[%clk 0:02:34.1]} 14. Nxd6+ {[%clk
0:02:33.2]} 14... Qxd6 {[%clk 0:02:35]} 15. Ne4 {[%clk 0:02:33.9]} 15... h3+
{[%clk 0:02:29.1]} 16. Kf2 {[%clk 0:02:31.6]} 16... Qe7 {[%clk 0:02:29.5]} 17.
Bg5 {[%clk 0:01:52.3]} 17... f6 {[%clk 0:02:26.8]} 18. Bd2 {[%clk 0:01:52.4]}
18... Ne5 {[%clk 0:02:17.5]} 19. Qa4+ {[%clk 0:01:49.2]} 19... Bd7 {[%clk
0:01:53.6]} 20. Qxd4 {[%clk 0:01:47.7]} 20... Bc6 {[%clk 0:01:51.1]} 21. b4
{[%clk 0:01:25.3]} 21... f5 {[%clk 0:01:31.7]} 22. Bg5 {[%clk 0:01:18.1]} 22...
Nf6 {[%clk 0:01:03.5]} 23. Nd6+ {[%clk 0:01:14.4]} 23... Kf8 {[%clk 0:01:02.1]}
24. Nxf5 {[%clk 0:01:15]} 24... Nfxg4+ {[%clk 0:00:44.5]} 25. fxg4 {[%clk
0:01:11.5]} 25... Qxg5 {[%clk 0:00:43.3]} 26. Qxe5 {[%clk 0:01:05.6]} 26... Bxh1
{[%clk 0:00:25.8]} 27. d4 {[%clk 0:01:05.1]} 27... Qf6 {[%clk 0:00:17.7]} 28.
Qc5+ {[%clk 0:01:02.5]} 28... Kg8 {[%clk 0:00:17.2]} 29. Bc4+ {[%clk 0:01:02.6]}
29... Kh7 {[%clk 0:00:17.2]} 30. Rxh1 {[%clk 0:00:56.7]} 30... Rac8 {[%clk
0:00:17.4]} 31. Qd5 {[%clk 0:00:38.7]} 31... Rhd8 {[%clk 0:00:15.9]} 32. Qe6
{[%clk 0:00:38.7]} 32... Qxe6 {[%clk 0:00:07.1]} 33. Bxe6 {[%clk 0:00:39.6]}
33... Rc2+ {[%clk 0:00:06.7]} 34. Ke3 {[%clk 0:00:39.4]} 34... Rc3+ {[%clk
0:00:03.7]} 35. Ke4 {[%clk 0:00:39.3]} 35... g6 {[%clk 0:00:03.2]} 36. Ne3
{[%clk 0:00:34.4]} 36... Rf8 {[%clk 0:00:02.7]} 37. d5 {[%clk 0:00:35]} 37...
Rf2 {[%clk 0:00:02.6]} 38. Kd4 {[%clk 0:00:30.8]} 38... Ra3 {[%clk 0:00:01.6]}
39. d6 {[%clk 0:00:29.6]} 39... Rd2+ {[%clk 0:00:02.2]} 40. Ke4 {[%clk
0:00:19.1]} 40... Re2 {[%clk 0:00:02.2]} 41. d7 {[%clk 0:00:15.4]} 41... Rexe3+
{[%clk 0:00:02.5]} 42. Kf4 {[%clk 0:00:15.9]} 42... Red3 {[%clk 0:00:02.2]} 43.
Rc1 {[%clk 0:00:14.9]} 43... Rd6 {[%clk 0:00:02.5]} 44. Rc8 {[%clk 0:00:13.3]}
44... Ra4 {[%clk 0:00:03.1]} 45. Ke5 {[%clk 0:00:13.1]} 45... Rxb4 {[%clk
0:00:03.7]} 46. Kxd6 {[%clk 0:00:13.1]} 1-0

[Event "*** SCC Grand Prix: Titled Tuesday Blitz"]
[Site "Chess.com"]
[Date "2020.08.04"]
[Round "10"]
[White "AvitalBor"]
[Black "BilodeauA"]
[Result "0-1"]
[WhiteElo "2780"]
[BlackElo "2895"]
[TimeControl "180+1"]
[EndTime "15:38:15 PDT"]
[Termination "BilodeauA won by checkmate"]

1. e4 {[%clk 0:03:00.9]} 1... e5 {[%clk 0:02:59.8]} 2. Nf3 {[%clk 0:03:00.6]}
2... Nc6 {[%clk 0:03:00.4]} 3. Bb5 {[%clk 0:03:01]} 3... a6 {[%clk 0:03:01]} 4.
Ba4 {[%clk 0:03:01.5]} 4... d6 {[%clk 0:03:01.7]} 5. c4 {[%clk 0:02:58]} 5...
Bd7 {[%clk 0:03:01.3]} 6. O-O {[%clk 0:02:55.7]} 6... Nge7 {[%clk 0:03:01.9]} 7.
d4 {[%clk 0:02:48]} 7... Ng6 {[%clk 0:03:01.9]} 8. Nc3 {[%clk 0:02:37.9]} 8...
Be7 {[%clk 0:03:01.9]} 9. h3 {[%clk 0:02:26.6]} 9... O-O {[%clk 0:03:01.8]} 10.
d5 {[%clk 0:01:59.6]} 10... Nb8 {[%clk 0:03:00.7]} 11. Bxd7 {[%clk 0:01:59.5]}
11... Qxd7 {[%clk 0:03:01.6]} 12. Be3 {[%clk 0:01:59.9]} 12... f5 {[%clk
0:03:01.8]} 13. exf5 {[%clk 0:01:59.8]} 13... Qxf5 {[%clk 0:03:02.7]} 14. Nd2
{[%clk 0:01:58.8]} 14... Bg5 {[%clk 0:02:19.9]} 15. Nde4 {[%clk 0:01:43]} 15...
Bf4 {[%clk 0:02:20.1]} 16. c5 {[%clk 0:01:33.9]} 16... Qd7 {[%clk 0:01:52.6]}
17. Qb3 {[%clk 0:01:25.9]} 17... b5 {[%clk 0:01:17.1]} 18. cxb6 {[%clk
0:01:10.1]} 18... a5 {[%clk 0:01:17.5]} 19. bxc7 {[%clk 0:01:02.4]} 19... Qxc7
{[%clk 0:01:15]} 20. Nb5 {[%clk 0:01:00.2]} 20... Qd7 {[%clk 0:01:07.3]} 21.
Nbxd6 {[%clk 0:00:59.9]} 21... Na6 {[%clk 0:01:04.6]} 22. Nc4 {[%clk 0:00:41]}
22... a4 {[%clk 0:00:54.8]} 23. Nb6 {[%clk 0:00:35]} 23... Qf5 {[%clk
0:00:46.5]} 24. Qc4 {[%clk 0:00:34.3]} 24... Rad8 {[%clk 0:00:25.9]} 25. d6+
{[%clk 0:00:30.7]} 25... Kh8 {[%clk 0:00:26.2]} 26. Qxa6 {[%clk 0:00:30.7]}
26... Qxe4 {[%clk 0:00:26.5]} 27. Qc4 {[%clk 0:00:26.5]} 27... Qf5 {[%clk
0:00:26.3]} 28. Rad1 {[%clk 0:00:23.2]} 28... Qg5 {[%clk 0:00:26.2]} 29. Qe4
{[%clk 0:00:21.1]} 29... Nh4 {[%clk 0:00:23.3]} 30. d7 {[%clk 0:00:18.1]} 30...
Rf6 {[%clk 0:00:20.7]} 31. Nc4 {[%clk 0:00:10.7]} 31... Rg6 {[%clk 0:00:18.6]}
32. g4 {[%clk 0:00:10.7]} 32... h5 {[%clk 0:00:18.2]} 33. Bxf4 {[%clk
0:00:08.6]} 33... exf4 {[%clk 0:00:17.4]} 34. Ne5 {[%clk 0:00:08.8]} 34... Qxe5
{[%clk 0:00:12.3]} 35. Qxe5 {[%clk 0:00:08.7]} 35... Nf3+ {[%clk 0:00:12.9]} 36.
Kg2 {[%clk 0:00:07.6]} 36... Nxe5 {[%clk 0:00:13.8]} 37. Rfe1 {[%clk 0:00:07.9]}
37... Rxd7 {[%clk 0:00:11.9]} 38. Rc1 {[%clk 0:00:08]} 38... Rd5 {[%clk
0:00:08.3]} 39. Rc8+ {[%clk 0:00:07.5]} 39... Kh7 {[%clk 0:00:08.3]} 40. Ra8
{[%clk 0:00:07.1]} 40... hxg4 {[%clk 0:00:07.9]} 41. hxg4 {[%clk 0:00:07.6]}
41... Rxg4+ {[%clk 0:00:08.5]} 42. Kh2 {[%clk 0:00:08.2]} 42... Nf3+ {[%clk
0:00:08.6]} 43. Kh3 {[%clk 0:00:09.1]} 43... Rg6 {[%clk 0:00:05.9]} 44. Ree8
{[%clk 0:00:06.6]} 44... Rh5# {[%clk 0:00:05.9]} 0-1

[Event "*** SCC Grand Prix: Titled Tuesday Blitz"]
[Site "Chess.com"]
[Date "2020.08.04"]
[Round "10"]
[White "Kavyev_Ruslan"]
[Black "KatarinaOstojic"]
[Result "1-0"]
[WhiteElo "2386"]
[BlackElo "2213"]
[TimeControl "180+1"]
[EndTime "15:38:18 PDT"]
[Termination "Kavyev_Ruslan won by checkmate"]

1. e4 {[%clk 0:03:00.1]} 1... c5 {[%clk 0:03:00]} 2. Nf3 {[%clk 0:02:59.9]} 2...
d6 {[%clk 0:03:00.1]} 3. d4 {[%clk 0:03:00.4]} 3... cxd4 {[%clk 0:03:00.5]} 4.
Nxd4 {[%clk 0:03:01.3]} 4... Nf6 {[%clk 0:03:00.5]} 5. Nc3 {[%clk 0:03:02.2]}
5... a6 {[%clk 0:03:00.6]} 6. Be3 {[%clk 0:03:02.8]} 6... e5 {[%clk 0:03:00.2]}
7. Nb3 {[%clk 0:03:00.5]} 7... Be6 {[%clk 0:03:00.6]} 8. h3 {[%clk 0:03:00.1]}
8... Be7 {[%clk 0:03:00]} 9. Qf3 {[%clk 0:03:00.4]} 9... O-O {[%clk 0:02:59.7]}
10. O-O-O {[%clk 0:03:00]} 10... Nbd7 {[%clk 0:02:59.5]} 11. g4 {[%clk
0:02:59.8]} 11... Qc7 {[%clk 0:02:55.6]} 12. g5 {[%clk 0:02:59.2]} 12... Ne8
{[%clk 0:02:55.5]} 13. Kb1 {[%clk 0:02:55.5]} 13... b5 {[%clk 0:02:54.3]} 14. h4
{[%clk 0:02:55]} 14... Rc8 {[%clk 0:02:51.8]} 15. Bd3 {[%clk 0:02:54]} 15... Nb6
{[%clk 0:02:39.6]} 16. Nd5 {[%clk 0:02:51.5]} 16... Nxd5 {[%clk 0:02:26.6]} 17.
exd5 {[%clk 0:02:52.4]} 17... Bd7 {[%clk 0:02:27.1]} 18. Qe4 {[%clk 0:02:40.7]}
18... g6 {[%clk 0:02:26.4]} 19. h5 {[%clk 0:02:36.8]} 19... Bf5 {[%clk
0:02:25.9]} 20. Qh4 {[%clk 0:02:30]} 20... Bxd3 {[%clk 0:02:23.3]} 21. cxd3
{[%clk 0:02:30.3]} 21... Qc2+ {[%clk 0:02:17.7]} 22. Ka1 {[%clk 0:02:30.5]}
22... Ng7 {[%clk 0:02:08.3]} 23. hxg6 {[%clk 0:02:23.9]} 23... fxg6 {[%clk
0:02:09.2]} 24. Qxh7+ {[%clk 0:02:23.1]} 24... Kf7 {[%clk 0:02:09.7]} 25. Qh3
{[%clk 0:02:11.6]} 25... Rh8 {[%clk 0:01:58.9]} 26. Qf3+ {[%clk 0:02:06.3]}
26... Nf5 {[%clk 0:01:53.4]} 27. Rhe1 {[%clk 0:01:50.3]} 27... Kg7 {[%clk
0:01:45.2]} 28. d4 {[%clk 0:01:46.1]} 28... e4 {[%clk 0:01:34.4]} 29. Qg2 {[%clk
0:01:41.6]} 29... a5 {[%clk 0:01:20.4]} 30. Rd2 {[%clk 0:01:41.6]} 30... Nxe3
{[%clk 0:01:09.2]} 31. fxe3 {[%clk 0:01:37.3]} 31... Qc4 {[%clk 0:01:06.3]} 32.
Qxe4 {[%clk 0:01:36.1]} 32... Bxg5 {[%clk 0:01:05.8]} 33. Rg2 {[%clk 0:01:34.8]}
33... Rh5 {[%clk 0:00:51.7]} 34. Rxg5 {[%clk 0:01:34.8]} 34... Rxg5 {[%clk
0:00:49.7]} 35. Qe7+ {[%clk 0:01:16.6]} 35... Kh6 {[%clk 0:00:49.1]} 36. Qxd6
{[%clk 0:00:42]} 36... a4 {[%clk 0:00:38.9]} 37. Nc5 {[%clk 0:00:41.9]} 37...
Qc2 {[%clk 0:00:27.1]} 38. a3 {[%clk 0:00:32.8]} 38... Re8 {[%clk 0:00:23.8]}
39. Qf4 {[%clk 0:00:27.5]} 39... Qf5 {[%clk 0:00:22.3]} 40. Rh1+ {[%clk
0:00:25.9]} 40... Kg7 {[%clk 0:00:21.3]} 41. Qc7+ {[%clk 0:00:26.2]} 41... Kf6
{[%clk 0:00:15.6]} 42. Nd7+ {[%clk 0:00:24.2]} 42... Kg7 {[%clk 0:00:12.4]} 43.
Ne5+ {[%clk 0:00:21.8]} 43... Kg8 {[%clk 0:00:10.3]} 44. Qh7+ {[%clk 0:00:21.1]}
44... Kf8 {[%clk 0:00:10.3]} 45. Qh8+ {[%clk 0:00:21.6]} 45... Ke7 {[%clk
0:00:09.6]} 46. Qg7+ {[%clk 0:00:20.3]} 46... Kd8 {[%clk 0:00:03.5]} 47. Rc1
{[%clk 0:00:20.6]} 47... Qd7 {[%clk 0:00:01.1]} 48. Qxd7# {[%clk 0:00:20.1]} 1-0